fUST/lending_fUST_20250610
["ID","MTS","AMOUNT","RATE_DAILY","PERIOD"]
[365249325,1749563448676,-500.0,0.00022999,2]
[365249326,1749563448686,-183.22363061,0.00022999,2]
[365249327,1749563448696,-500.0,0.00022999,2]
[365249328,1749563448705,-500.0,0.00022999,2]
[365249329,1749563448714,-500.0,0.00022999,2]
[365249330,1749563448724,-500.0,0.00022999,2]
[365249331,1749563448734,-500.0,0.00022999,2]
[365249332,1749563448743,-500.0,0.00022999,2]
[365249333,1749563448753,-500.0,0.00022999,2]
[365249334,1749563448762,-500.0,0.00022999,2]
[365249335,1749563448772,-500.0,0.00022999,2]
[365249336,1749563448782,-350.0,0.00022999,2]
[365249337,1749563448792,-500.0,0.00023,2]
[365249338,1749563448802,-500.0,0.00023,2]
[365249339,1749563448812,-1000.0,0.00023,23]
[365249340,1749563448821,-50000.0,0.00023,7]
[365249341,1749563448831,-50000.0,0.00023,7]
[365249342,1749563448841,-50000.0,0.00023,7]
[365249343,1749563448851,-15541.92528478,0.00023,7]
[365249344,1749563449414,-411.05,0.00021085,10]
[365249345,1749563449426,-460.0,0.00021095,4]
[365249346,1749563449436,-460.0,0.00021095,4]
[365249347,1749563449446,-460.0,0.00021095,4]
[365249348,1749563449457,-173.14647506,0.00021095,4]
[365249349,1749563449467,-364.9974737,0.00022904,2]
[365249350,1749563449477,-4890.56943545,0.00023,7]
[365249351,1749563449633,-29567.50527977,0.00023,7]
[365249352,1749563449643,-50000.0,0.00023,7]
[365249353,1749563449653,-50000.0,0.00023,7]
[365249354,1749563449663,-50000.0,0.00023,7]
[365249355,1749563449672,-50000.0,0.00023,7]
[365249356,1749563449681,-50000.0,0.00023,7]
[365249357,1749563449691,-50000.0,0.00023,7]
[365249358,1749563449700,-50000.0,0.00023,7]
[365249359,1749563449710,-171.0,0.00023,7]
[365249360,1749563449720,-1100.0,0.00023,4]
[365249361,1749563449730,-180.0,0.00023013,4]
[365249362,1749563449739,-460.0,0.00023013,4]
[365249363,1749563449748,-460.0,0.00023013,4]
[365249364,1749563449758,-460.0,0.00023013,4]
[365249365,1749563449767,-240.0,0.00023013,4]
[365249366,1749563449779,-460.0,0.00023013,4]
[365249367,1749563449789,-460.0,0.00023013,4]
[365249368,1749563449798,-460.0,0.00023013,4]
[365249369,1749563449808,-460.0,0.00023013,4]
[365249370,1749563449818,-460.0,0.00023013,4]
[365249371,1749563449828,-460.0,0.00023013,4]
[365249372,1749563449838,-1110.38,0.00023013,4]
[365249373,1749563449848,-1070.51,0.00023013,4]
[365249374,1749563449858,-460.0,0.00023013,4]
[365249375,1749563449868,-754.0,0.00023013,4]
[365249376,1749563449877,-2513.93,0.00023013,4]
[365249377,1749563449886,-503.61,0.00023013,4]
[365249378,1749563449896,-460.0,0.00023013,4]
[365249379,1749563449906,-460.0,0.00023013,4]
[365249380,1749563449916,-943.3,0.00023013,4]
[365249381,1749563449926,-1059.77,0.00023013,4]
[365249382,1749563449937,-460.0,0.00023013,4]
[365249383,1749563449947,-460.0,0.00023013,4]
[365249384,1749563449957,-1711.19,0.00023013,4]
[365249385,1749563449971,-460.0,0.00023013,4]
[365249386,1749563449981,-509.67,0.00023013,4]
[365249387,1749563449990,-569.4,0.00023013,4]
[365249388,1749563450000,-1001.08,0.00023013,4]
[365249389,1749563450010,-500.0,0.00023013,2]
[365249390,1749563450021,-460.0,0.00023013,4]
[365249391,1749563450030,-611.26,0.00023013,2]
[365249392,1749563450041,-460.0,0.00023013,4]
[365249393,1749563450051,-1841.83,0.00023013,4]
[365249394,1749563450061,-2147.82,0.00023013,4]
[365249395,1749563450071,-2220.15,0.00023013,4]
[365249396,1749563450080,-2766.14,0.00023013,4]
[365249397,1749563450090,-556.55,0.00023013,4]
[365249398,1749563450100,-472.19,0.00023013,4]
[365249399,1749563450109,-460.0,0.00023013,4]
[365249400,1749563450119,-460.0,0.00023013,4]
[365249401,1749563450128,-460.0,0.00023013,4]
[365249402,1749563450139,-1794.45,0.00023013,4]
[365249403,1749563450149,-1655.44,0.00023013,4]
[365249404,1749563450158,-591.24,0.00023013,4]
[365249405,1749563450168,-1413.84,0.00023013,4]
[365249406,1749563450179,-1870.86,0.00023013,4]
[365249407,1749563450189,-460.0,0.00023013,4]
[365249408,1749563450199,-640.93,0.00023013,4]
[365249409,1749563450209,-460.0,0.00023013,4]
[365249410,1749563450220,-628.3,0.00023013,4]
[365249411,1749563450232,-661.5,0.00023013,4]
[365249412,1749563450242,-1028.94,0.00023013,4]
[365249413,1749563450253,-917.92,0.00023013,4]
[365249414,1749563450265,-536.72,0.00023013,4]
[365249415,1749563450280,-1750.456,0.00023044,2]
[365249416,1749563450291,-1815.222872,0.00023099,2]
[365249417,1749563450304,-963.0,0.00023107,2]
[365249418,1749563450314,-653.0,0.00023107,2]
[365249419,1749563450325,-2160.0,0.00023107,2]
[365249420,1749563450337,-1882.38611826,0.00023154,2]
[365249421,1749563450347,-176.8341807,0.00023178,2]
[365249422,1749563450358,-153.0,0.00023178,2]
[365249423,1749563450368,-158.7504224,0.00023178,2]
[365249424,1749563450378,-153.0,0.00023178,2]
[365249425,1749563450389,-573.3540349,0.00023178,2]
[365249426,1749563450399,-573.3540349,0.00023178,2]
[365249427,1749563450410,-158.7504224,0.00023178,2]
[365249428,1749563450420,-153.0,0.00023178,2]
[365249429,1749563450432,-154.9092557,0.00023178,2]
[365249430,1749563450443,-153.0,0.00023178,2]
[365249431,1749563450454,-176.8341807,0.00023178,2]
[365249432,1749563450464,-158.7504224,0.00023178,2]
[365249433,1749563450475,-176.8341807,0.00023178,2]
[365249434,1749563450485,-573.3540349,0.00023178,2]
[365249435,1749563450495,-176.8341807,0.00023178,2]
[365249436,1749563450510,-158.7504224,0.00023178,2]
[365249437,1749563450523,-153.0,0.00023178,2]
[365249438,1749563450534,-573.3540349,0.00023178,2]
[365249439,1749563450547,-153.0,0.00023178,2]
[365249440,1749563450558,-573.3540349,0.00023178,2]
[365249441,1749563450567,-176.8341807,0.00023178,2]
[365249442,1749563450577,-158.7504224,0.00023178,2]
[365249443,1749563450587,-158.7504224,0.00023178,2]
[365249444,1749563450597,-176.8341807,0.00023178,2]
[365249445,1749563450606,-153.0,0.00023178,2]
[365249446,1749563450616,-573.3540349,0.00023178,2]
[365249447,1749563450626,-153.0,0.00023178,2]
[365249448,1749563450635,-158.7504224,0.00023178,2]
[365249449,1749563450645,-176.8341807,0.00023178,2]
[365249450,1749563450655,-573.3540349,0.00023178,2]
[365249451,1749563450665,-176.8341807,0.00023178,2]
[365249452,1749563450675,-158.7504224,0.00023178,2]
[365249453,1749563450685,-153.0,0.00023178,2]
[365249454,1749563450694,-573.3540349,0.00023178,2]
[365249455,1749563450705,-153.0,0.00023178,2]
[365249456,1749563450714,-176.8341807,0.00023178,2]
[365249457,1749563450723,-158.7504224,0.00023178,2]
[365249458,1749563450733,-573.3540349,0.00023178,2]
[365249459,1749563450742,-176.8341807,0.00023178,2]
[365249460,1749563450752,-192.3900831,0.00023178,2]
[365249461,1749563450762,-573.3540349,0.00023178,2]
[365249462,1749563450773,-158.7504224,0.00023178,2]
[365249463,1749563450783,-153.0,0.00023178,2]
[365249464,1749563450793,-157.4068118,0.00023178,2]
[365249465,1749563450806,-176.8341807,0.00023178,2]
[365249466,1749563450818,-573.3540349,0.00023178,2]
[365249467,1749563450827,-153.0,0.00023178,2]
[365249468,1749563450836,-176.8341807,0.00023178,2]
[365249469,1749563450846,-306.0,0.00023178,2]
[365249470,1749563450856,-573.3540349,0.00023178,2]
[365249471,1749563450866,-317.5008448,0.00023178,2]
[365249472,1749563450874,-176.8341807,0.00023178,2]
[365249473,1749563450884,-573.3540349,0.00023178,2]
[365249474,1749563450893,-176.8341807,0.00023178,2]
[365249475,1749563450903,-573.3540349,0.00023178,2]
[365249476,1749563450912,-176.8341807,0.00023178,2]
[365249477,1749563450922,-573.3540349,0.00023178,2]
[365249478,1749563450931,-176.8341807,0.00023178,2]
[365249479,1749563450940,-573.3540349,0.00023178,2]
[365249480,1749563450950,-176.8341807,0.00023178,2]
[365249481,1749563450960,-573.3540349,0.00023178,2]
[365249482,1749563450969,-1142.1624118,0.00023178,2]
[365249483,1749563450981,-157.315,0.00023203,2]
[365249484,1749563450991,-1107.48915604,0.00023209,2]
[365249485,1749563451001,-460.0,0.00023287,4]
[365249486,1749563451011,-460.0,0.00023287,4]
[365249487,1749563451025,-460.0,0.00023287,4]
[365249488,1749563451034,-460.0,0.00023287,4]
[365249489,1749563451043,-460.0,0.00023287,4]
[365249490,1749563451053,-460.0,0.00023287,4]
[365249491,1749563451063,-460.0,0.00023287,4]
[365249492,1749563451073,-460.0,0.00023287,4]
[365249493,1749563451083,-460.0,0.00023287,4]
[365249494,1749563451093,-1110.38,0.00023287,4]
[365249495,1749563451103,-1070.51,0.00023287,4]
[365249496,1749563451113,-460.0,0.00023287,4]
[365249497,1749563451124,-754.0,0.00023287,4]
[365249498,1749563451133,-2513.93,0.00023287,4]
[365249499,1749563451143,-503.61,0.00023287,4]
[365249500,1749563451153,-460.0,0.00023287,4]
[365249501,1749563451163,-460.0,0.00023287,4]
[365249502,1749563451173,-943.3,0.00023287,4]
[365249503,1749563451183,-1059.77,0.00023287,4]
[365249504,1749563451194,-460.0,0.00023287,4]
[365249505,1749563451204,-460.0,0.00023287,4]
[365249506,1749563451215,-1711.19,0.00023287,4]
[365249507,1749563451225,-486.85981612,0.00023287,4]
[365249508,1749563451236,-509.67,0.00023287,4]
[365249509,1749563451246,-569.4,0.00023287,4]
[365249510,1749563451256,-1001.08,0.00023287,4]
[365249511,1749563451266,-460.0,0.00023287,4]
[365249512,1749563451281,-611.26,0.00023287,2]
[365249513,1749563451291,-460.0,0.00023287,4]
[365249514,1749563451301,-1841.83,0.00023287,4]
[365249515,1749563451312,-402.31195125,0.00023287,4]
[365249517,1749563530668,381.923463,0.00013699,2]
[365249520,1749563579774,500.0,0.00024657,120]
[365249522,1749563644468,1000.0,0.000247,120]
[365249524,1749563687347,521.0,0.000247,120]
[365249529,1749563795639,662.0,0.000247,120]
[365249532,1749563831525,-226.35468164,0.0001872,6]
[365249536,1749563840134,-226.35468164,0.0001872,6]
[365249538,1749563871886,445.2,0.000247,120]
[365249540,1749563879298,2000.0,0.000247,120]
[365249545,1749563968937,2000.000001,0.00018,2]
[365249546,1749563973784,163.75,0.00013699,2]
[365249547,1749563974170,163.75,0.00013699,2]
[365249548,1749563974467,163.75,0.00013699,2]
[365249549,1749563974821,163.7613617,0.00013699,2]
[365249551,1749564001308,3000.0,0.00018,2]
[365249552,1749564010218,-226.35468164,0.00018533,6]
[365249555,1749564100519,1000.0,0.00024,120]
[365249559,1749564196961,4773.64531836,0.0001805,6]
[365249561,1749564205280,4834.70063672,0.0001805,6]
[365249565,1749564313401,-226.35468164,0.00018457,2]
[365249570,1749564353676,-226.35468164,0.00018456,2]
[365249573,1749564424857,-165.08265539,0.00018357,2]
[365249574,1749564424880,-61.27202625,0.00018456,2]
[365249581,1749564483733,-12.37329211,0.00018456,2]
[365249582,1749564483757,-213.98138953,0.00018456,2]
[365249584,1749564546631,-226.35468164,0.00018456,2]
[365249589,1749564604342,-226.35468164,0.00018456,2]
[365249612,1749564632472,-73.64531836,0.00018456,2]
[365249613,1749564632482,-420.89901021,0.00018456,2]
[365249615,1749564632679,-779.10098979,0.00018456,2]
[365249616,1749564632689,-7520.22055332,0.00018457,2]
[365249617,1749564632702,-1231.59453356,0.00018457,2]
[365249618,1749564632715,-3850.9656559,0.00018457,2]
[365249619,1749564633718,-226.35468164,0.00018457,2]
[365249644,1749564638407,-329.94344376,0.00018457,2]
[365249646,1749564638423,-6292.35090533,0.00018457,2]
[365249649,1749564638439,-5222.21554485,0.00018457,2]
[365249651,1749564638449,-9295.35542676,0.000191,2]
[365249653,1749564638459,-16000.0,0.00019167,2]
[365249655,1749564638468,-36126.1149519,0.00019178,2]
[365249657,1749564638477,-184.26541,0.00019393,2]
[365249659,1749564638487,-4097.9296522,0.00019479,2]
[365249661,1749564638498,-1100.0,0.00019778,2]
[365249663,1749564638507,-3000.0,0.0002,2]
[365249665,1749564638516,-156.60765153,0.0002,5]
[365249666,1749564638526,-1000.0,0.0002,2]
[365249668,1749564638535,-1794.77784909,0.000201,2]
[365249670,1749564638544,-816.0128971,0.000201,2]
[365249673,1749564638554,-816.01289708,0.000201,2]
[365249675,1749564638563,-420.0,0.00020128,2]
[365249677,1749564638572,-420.0,0.00020128,2]
[365249678,1749564638582,-381.923463,0.00020187,2]
[365249680,1749564638591,-1680.0,0.00020227,2]
[365249682,1749564638601,-816.01289708,0.00020245,2]
[365249684,1749564638610,-168.401,0.00020364,2]
[365249687,1749564638619,-816.01289708,0.00020417,3]
[365249689,1749564638629,-1255.92,0.0002048,2]
[365249691,1749564638638,-816.01289708,0.0002059,3]
[365249695,1749564638647,-816.01289708,0.00020762,3]
[365249698,1749564638657,-816.01289708,0.00020934,4]
[365249701,1749564638666,-471.31545865,0.00020995,2]
[365249704,1749564638675,-1000.0,0.00021,21]
[365249707,1749564638684,-558.67,0.00021085,10]
[365249709,1749564638693,-500.0,0.00021094,2]
[365249711,1749564638702,-402.94533398,0.00021094,2]
[365249713,1749564638711,-500.0,0.00021094,2]
[365249715,1749564638721,-420.0,0.00021095,4]
[365249717,1749564638730,-334.06083632,0.00021095,4]
[365249720,1749564638749,-270.0,0.00021095,4]
[365249722,1749564638759,-460.0,0.00021095,4]
[365249724,1749564638768,-460.0,0.00021095,4]
[365249726,1749564638780,-460.0,0.00021095,4]
[365249728,1749564638789,-460.0,0.00021095,4]
[365249730,1749564638798,-460.0,0.00021095,4]
[365249732,1749564638809,-460.0,0.00021095,4]
[365249734,1749564638819,-428.96527999,0.00021095,4]
[365249736,1749564638829,-460.0,0.00021095,4]
[365249738,1749564638838,-401.65866752,0.00021095,4]
[365249740,1749564638848,-270.0,0.00021095,4]
[365249742,1749564638858,-460.0,0.00021095,4]
[365249744,1749564638868,-606.756726,0.00021095,4]
[365249746,1749564638878,-460.0,0.00021095,4]
[365249748,1749564638887,-460.0,0.00021095,4]
[365249750,1749564638897,-440.0,0.00021095,4]
[365249752,1749564638907,-460.0,0.00021095,4]
[365249754,1749564638916,-220.0,0.00021095,4]
[365249756,1749564638926,-460.0,0.00021095,4]
[365249758,1749564638936,-490.0,0.00021095,4]
[365249760,1749564638945,-518.5210037,0.00021095,4]
[365249762,1749564638955,-460.0,0.00021095,4]
[365249764,1749564638964,-460.0,0.00021095,4]
[365249766,1749564638974,-460.0,0.00021095,4]
[365249768,1749564638983,-460.0,0.00021095,4]
[365249770,1749564638993,-460.0,0.00021095,4]
[365249772,1749564639003,-291.27918575,0.00021095,4]
[365249774,1749564639013,-352.49311707,0.00021095,4]
[365249795,1749564639023,-460.0,0.00021095,4]
[365249798,1749564639223,-460.0,0.00021095,4]
[365249799,1749564639233,-440.0,0.00021095,4]
[365249801,1749564639243,-440.0,0.00021095,4]
[365249804,1749564639252,-566.07,0.00021095,4]
[365249806,1749564639263,-460.0,0.00021095,4]
[365249808,1749564639273,-460.0,0.00021095,4]
[365249810,1749564639284,-460.0,0.00021095,4]
[365249812,1749564639294,-510.0,0.00021095,4]
[365249814,1749564639305,-460.0,0.00021095,4]
[365249816,1749564639314,-460.0,0.00021095,4]
[365249818,1749564639326,-628.96,0.00021095,4]
[365249820,1749564639336,-460.0,0.00021095,4]
[365249822,1749564639346,-460.0,0.00021095,4]
[365249824,1749564639355,-460.0,0.00021095,4]
[365249826,1749564639364,-460.0,0.00021095,4]
[365249828,1749564639374,-460.0,0.00021095,4]
[365249830,1749564639383,-460.0,0.00021095,4]
[365249832,1749564639392,-440.0,0.00021095,4]
[365249834,1749564639402,-460.0,0.00021095,4]
[365249836,1749564639412,-460.0,0.00021095,4]
[365249838,1749564639425,-460.0,0.00021095,4]
[365249839,1749564639435,-460.0,0.00021095,4]
[365249840,1749564639446,-460.0,0.00021095,4]
[365249841,1749564639456,-430.0,0.00021095,4]
[365249842,1749564639466,-460.0,0.00021095,4]
[365249843,1749564639475,-460.0,0.00021095,4]
[365249844,1749564639485,-460.0,0.00021095,4]
[365249845,1749564639497,-460.0,0.00021095,4]
[365249846,1749564639507,-460.0,0.00021095,4]
[365249847,1749564639516,-430.0,0.00021095,4]
[365249848,1749564639526,-500.0,0.00021095,4]
[365249849,1749564639535,-563.59544499,0.00021095,4]
[365249850,1749564639545,-449.1,0.00021095,4]
[365249851,1749564639554,-460.0,0.00021095,4]
[365249852,1749564639563,-460.0,0.00021095,4]
[365249853,1749564639573,-460.0,0.00021095,4]
[365249854,1749564639582,-240.0,0.00021095,4]
[365249855,1749564639591,-460.0,0.00021095,4]
[365249856,1749564639600,-460.0,0.00021095,4]
[365249857,1749564639609,-460.0,0.00021095,4]
[365249858,1749564639618,-460.0,0.00021095,4]
[365249859,1749564639628,-460.0,0.00021095,4]
[365249860,1749564639637,-300.0,0.00021095,4]
[365249861,1749564639647,-244.92835629,0.00021095,4]
[365249862,1749564639659,-460.0,0.00021095,4]
[365249863,1749564639669,-460.0,0.00021095,4]
[365249864,1749564639679,-995.01,0.00021095,4]
[365249865,1749564639689,-460.0,0.00021095,4]
[365249866,1749564639698,-321.60694409,0.00021095,4]
[365249867,1749564639708,-869.06,0.00021095,4]
[365249868,1749564639717,-460.0,0.00021095,4]
[365249869,1749564639726,-460.0,0.00021095,4]
[365249870,1749564639736,-460.0,0.00021095,4]
[365249871,1749564639746,-460.0,0.00021095,4]
[365249872,1749564639755,-836.97,0.00021095,4]
[365249873,1749564639765,-460.0,0.00021095,4]
[365249874,1749564639776,-460.0,0.00021095,4]
[365249875,1749564639786,-1066.68,0.00021095,4]
[365249876,1749564639795,-460.0,0.00021095,4]
[365249877,1749564639804,-430.0,0.00021095,4]
[365249878,1749564639813,-460.0,0.00021095,4]
[365249879,1749564639822,-738.77,0.00021095,4]
[365249880,1749564639832,-460.0,0.00021095,4]
[365249881,1749564639841,-460.0,0.00021095,4]
[365249882,1749564639850,-460.0,0.00021095,4]
[365249883,1749564639859,-2478.16,0.00021095,4]
[365249884,1749564639869,-460.0,0.00021095,4]
[365249885,1749564639878,-460.0,0.00021095,4]
[365249886,1749564639887,-460.0,0.00021095,4]
[365249887,1749564639896,-430.0,0.00021095,4]
[365249888,1749564639906,-460.0,0.00021095,4]
[365249889,1749564639916,-500.0,0.00021095,4]
[365249890,1749564639926,-460.0,0.00021095,4]
[365249891,1749564639937,-460.0,0.00021095,4]
[365249892,1749564639946,-689.12,0.00021095,4]
[365249893,1749564639955,-460.0,0.00021095,4]
[365249894,1749564639965,-460.0,0.00021095,4]
[365249896,1749564639974,-460.0,0.00021095,4]
[365249897,1749564639983,-460.0,0.00021095,4]
[365249898,1749564639993,-587.34,0.00021095,4]
[365249899,1749564640002,-460.0,0.00021095,4]
[365249900,1749564640011,-460.0,0.00021095,4]
[365249901,1749564640020,-460.0,0.00021095,4]
[365249902,1749564640032,-915.34,0.00021095,4]
[365249904,1749564640041,-460.0,0.00021095,4]
[365249905,1749564640050,-460.0,0.00021095,4]
[365249906,1749564640059,-460.0,0.00021095,4]
[365249907,1749564640069,-240.0,0.00021095,4]
[365249908,1749564640079,-1497.62,0.00021095,4]
[365249909,1749564640088,-460.0,0.00021095,4]
[365249910,1749564640097,-460.0,0.00021095,4]
[365249911,1749564640106,-460.0,0.00021095,4]
[365249912,1749564640116,-500.0,0.00021095,4]
[365249913,1749564640124,-545.12192138,0.00021095,4]
[365249914,1749564640134,-460.0,0.00021095,4]
[365249915,1749564640143,-460.0,0.00021095,4]
[365249916,1749564640152,-460.0,0.00021095,4]
[365249917,1749564640162,-460.0,0.00021095,4]
[365249918,1749564640171,-460.0,0.00021095,4]
[365249919,1749564640180,-670.08,0.00021095,4]
[365249920,1749564640190,-1608.75,0.00021095,4]
[365249922,1749564640199,-656.3,0.00021095,4]
[365249923,1749564640208,-460.0,0.00021095,4]
[365249924,1749564640217,-460.0,0.00021095,4]
[365249925,1749564640226,-460.0,0.00021095,4]
[365249926,1749564640235,-460.0,0.00021095,4]
[365249927,1749564640245,-460.0,0.00021095,4]
[365249928,1749564640254,-176.76006391,0.00021095,4]
[365249929,1749564640263,-1277.3,0.00021095,4]
[365249930,1749564640271,-460.0,0.00021095,4]
[365249931,1749564640282,-2273.12,0.00021095,4]
[365249932,1749564640291,-460.0,0.00021095,4]
[365249933,1749564640300,-320.86799031,0.00021095,4]
[365249934,1749564640309,-460.0,0.00021095,4]
[365249935,1749564640318,-852.64,0.00021095,4]
[365249936,1749564640327,-460.0,0.00021095,4]
[365249937,1749564640337,-591.77333873,0.00021095,4]
[365249938,1749564640346,-460.0,0.00021095,4]
[365249939,1749564640355,-320.0,0.00021095,4]
[365249940,1749564640364,-2211.82,0.00021095,4]
[365249941,1749564640374,-568.21,0.00021095,4]
[365249942,1749564640383,-460.0,0.00021095,4]
[365249943,1749564640396,-460.0,0.00021095,4]
[365249944,1749564640406,-460.0,0.00021095,4]
[365249945,1749564640425,-460.0,0.00021095,4]
[365249946,1749564640445,-460.0,0.00021095,4]
[365249947,1749564640455,-460.0,0.00021095,4]
[365249948,1749564640464,-3060.75,0.00021095,4]
[365249949,1749564640474,-250.0,0.00021095,4]
[365249950,1749564640483,-2187.89,0.00021095,4]
[365249951,1749564640492,-460.0,0.00021095,4]
[365249952,1749564640501,-460.0,0.00021095,4]
[365249953,1749564640511,-460.0,0.00021095,4]
[365249955,1749564640521,-1232.27,0.00021095,4]
[365249957,1749564640535,-718.97,0.00021095,2]
[365249959,1749564640545,-542.75,0.00021095,4]
[365249961,1749564640555,-618.23,0.00021095,4]
[365249963,1749564640564,-460.0,0.00021095,4]
[365249965,1749564640574,-360.0,0.00021095,4]
[365249967,1749564640584,-460.0,0.00021095,4]
[365249969,1749564640593,-460.0,0.00021095,4]
[365249970,1749564640602,-460.0,0.00021095,4]
[365249972,1749564640611,-460.0,0.00021095,4]
[365249974,1749564640621,-460.0,0.00021095,4]
[365249976,1749564640630,-460.0,0.00021095,4]
[365249978,1749564640639,-440.0,0.00021095,4]
[365249980,1749564640649,-460.0,0.00021095,4]
[365249982,1749564640658,-460.0,0.00021095,4]
[365249985,1749564640668,-2676.05,0.00021095,4]
[365249987,1749564640678,-460.0,0.00021095,4]
[365249989,1749564640688,-460.0,0.00021095,4]
[365249991,1749564640698,-440.0,0.00021095,4]
[365249993,1749564640710,-460.0,0.00021095,4]
[365249995,1749564640720,-1581.92,0.00021095,4]
[365249997,1749564640729,-1483.2,0.00021095,4]
[365249999,1749564640738,-460.0,0.00021095,4]
[365250001,1749564640748,-460.0,0.00021095,4]
[365250003,1749564640758,-460.0,0.00021095,4]
[365250005,1749564640768,-2088.29,0.00021095,4]
[365250007,1749564640778,-460.0,0.00021095,4]
[365250009,1749564640788,-460.0,0.00021095,4]
[365250011,1749564640797,-460.0,0.00021095,4]
[365250013,1749564640806,-500.0,0.00021095,4]
[365250015,1749564640815,-816.01289708,0.00021107,4]
[365250017,1749564640825,-816.01289708,0.00021279,5]
[365250019,1749564640835,-471.31545861,0.00021338,2]
[365250021,1749564640844,-500.0,0.00021368,2]
[365250023,1749564640854,-217.10844023,0.00021368,2]
[365250025,1749564640864,-440.0,0.00021369,4]
[365250027,1749564640873,-460.0,0.00021369,4]
[365250029,1749564640882,-460.0,0.00021369,4]
[365250031,1749564640891,-460.0,0.00021369,4]
[365250033,1749564640901,-440.0,0.00021369,4]
[365250035,1749564640910,-460.0,0.00021369,4]
[365250037,1749564640919,-566.07,0.00021369,4]
[365250039,1749564640929,-420.0,0.00021369,4]
[365250041,1749564640938,-460.0,0.00021369,4]
[365250043,1749564640947,-628.96,0.00021369,4]
[365250045,1749564640956,-460.0,0.00021369,4]
[365250047,1749564640965,-460.0,0.00021369,4]
[365250049,1749564640975,-460.0,0.00021369,4]
[365250051,1749564640985,-550.79608152,0.00021369,4]
[365250053,1749564640994,-440.0,0.00021369,4]
[365250055,1749564641003,-380.0,0.00021369,4]
[365250057,1749564641013,-460.0,0.00021369,4]
[365250059,1749564641022,-460.0,0.00021369,4]
[365250061,1749564641033,-447.99541671,0.00021369,4]
[365250063,1749564641043,-540.0,0.00021369,4]
[365250065,1749564641053,-460.0,0.00021369,4]
[365250067,1749564641063,-460.0,0.00021369,4]
[365250069,1749564641072,-460.0,0.00021369,4]
[365250071,1749564641082,-460.0,0.00021369,4]
[365250073,1749564641091,-460.0,0.00021369,4]
[365250075,1749564641102,-150.0,0.00021369,4]
[365250077,1749564641111,-460.0,0.00021369,4]
[365250079,1749564641120,-460.0,0.00021369,4]
[365250081,1749564641130,-460.0,0.00021369,4]
[365250083,1749564641139,-995.01,0.00021369,4]
[365250085,1749564641149,-240.0,0.00021369,4]
[365250087,1749564641158,-869.06,0.00021369,4]
[365250089,1749564641166,-460.0,0.00021369,4]
[365250091,1749564641176,-322.8358406,0.00021369,4]
[365250093,1749564641185,-836.97,0.00021369,4]
[365250095,1749564641194,-160.0,0.00021369,4]
[365250097,1749564641204,-460.0,0.00021369,4]
[365250099,1749564641213,-1066.68,0.00021369,4]
[365250101,1749564641223,-460.0,0.00021369,4]
[365250103,1749564641232,-460.0,0.00021369,4]
[365250105,1749564641244,-738.77,0.00021369,4]
[365250107,1749564641255,-460.0,0.00021369,4]
[365250109,1749564641265,-430.0,0.00021369,4]
[365250111,1749564641274,-460.0,0.00021369,4]